[Event "Titled Tuesday Blitz July 11 Early 2023"]
[White "Szczurek, Krzysztof"]
[Black "Vlassov, Nikolai"]
[WhiteFideId "1185489"]
[BlackFideId "4103360"]
[WhiteElo "2493"]
[BlackElo "2589"]
[Result "1/2-1/2"]
[Round "8"]
[TimeControl "180+2"]
[Date "2023.07.11"]
[WhiteClock "0:00:19"]
[BlackClock "0:00:11"]
[Board "77"]

1. Nf3 {[%clk 0:03:00]}  c5 {[%clk 0:02:59]} 2. c3 {[%clk 0:02:57]}  Nf6 {[%clk 0:02:51]} 3. d4 {[%clk 0:02:57]}  b6 {[%clk 0:02:42]} 4. g3 {[%clk 0:02:53]}  Bb7 {[%clk 0:02:42]} 5. Bg2 {[%clk 0:02:53]}  e6 {[%clk 0:02:33]} 6. O-O {[%clk 0:02:52]}  Be7 {[%clk 0:02:32]} 7. Bf4 {[%clk 0:02:48]}  O-O {[%clk 0:02:32]} 8. Nbd2 {[%clk 0:02:48]}  cxd4 {[%clk 0:02:31]} 9. cxd4 {[%clk 0:02:47]}  Na6 {[%clk 0:02:26]} 10. Rc1 {[%clk 0:02:44]}  Rc8 {[%clk 0:02:26]} 11. Ne5 {[%clk 0:02:34]}  Bxg2 {[%clk 0:02:25]} 12. Kxg2 {[%clk 0:02:35]}  Rxc1 {[%clk 0:02:10]} 13. Qxc1 {[%clk 0:02:34]}  Nb4 {[%clk 0:02:10]} 14. Ndf3 {[%clk 0:02:25]}  Qa8 {[%clk 0:01:52]} 15. a3 {[%clk 0:02:15]}  Rc8 {[%clk 0:01:51]} 16. Qb1 {[%clk 0:02:12]}  Nbd5 {[%clk 0:01:37]} 17. Bd2 {[%clk 0:02:07]}  d6 {[%clk 0:01:35]} 18. Nd3 {[%clk 0:02:02]}  Ne4 {[%clk 0:01:35]} 19. Rd1 {[%clk 0:01:54]}  Bf6 {[%clk 0:01:32]} 20. Be1 {[%clk 0:01:46]}  Rc7 {[%clk 0:01:16]} 21. Rc1 {[%clk 0:01:41]}  Qc8 {[%clk 0:00:59]} 22. Rxc7 {[%clk 0:01:40]}  Qxc7 {[%clk 0:00:59]} 23. Nb4 {[%clk 0:01:27]}  Nxb4 {[%clk 0:00:53]} 24. Bxb4 {[%clk 0:01:27]}  d5 {[%clk 0:00:50]} 25. Qd1 {[%clk 0:01:06]}  h5 {[%clk 0:00:47]} 26. h4 {[%clk 0:01:05]}  Qc4 {[%clk 0:00:44]} 27. e3 {[%clk 0:01:00]}  a5 {[%clk 0:00:43]} 28. Bc3 {[%clk 0:00:57]}  Nxc3 {[%clk 0:00:37]} 29. bxc3 {[%clk 0:00:56]}  Qxc3 {[%clk 0:00:38]} 30. Qa4 {[%clk 0:00:56]}  Kf8 {[%clk 0:00:28]} 31. Qb5 {[%clk 0:00:50]}  Qxa3 {[%clk 0:00:24]} 32. Qxb6 {[%clk 0:00:51]}  Qb4 {[%clk 0:00:23]} 33. Qc7 {[%clk 0:00:47]}  g6 {[%clk 0:00:18]} 34. Ne5 {[%clk 0:00:33]}  Bxe5 {[%clk 0:00:17]} 35. dxe5 {[%clk 0:00:21]}  a4 {[%clk 0:00:17]} 36. Qd8+ {[%clk 0:00:21]}  Kg7 {[%clk 0:00:17]} 37. Qf6+ {[%clk 0:00:21]}  Kg8 {[%clk 0:00:17]} 38. Qd8+ {[%clk 0:00:21]}  Qf8 {[%clk 0:00:15]} 39. Qa5 {[%clk 0:00:21]}  a3 {[%clk 0:00:16]} 40. Kh2 {[%clk 0:00:21]}  Qe7 {[%clk 0:00:16]} 41. Kg2 {[%clk 0:00:20]}  Kg7 {[%clk 0:00:16]} 42. Kh2 {[%clk 0:00:19]}  f6 {[%clk 0:00:16]} 43. exf6+ {[%clk 0:00:18]}  Kxf6 {[%clk 0:00:16]} 44. Qc3+ {[%clk 0:00:18]}  Kf7 {[%clk 0:00:13]} 45. Qa5 {[%clk 0:00:19]}  Qd6 {[%clk 0:00:11]} 46. Kg2 {[%clk 0:00:19]}  e5 {[%clk 0:00:11]} 47. Qa7+ {[%clk 0:00:19]}  Kf6 {[%clk 0:00:11]} 48. f3 {[%clk 0:00:18]}  d4 {[%clk 0:00:12]} 49. g4 {[%clk 0:00:17]}  dxe3 {[%clk 0:00:11]} 50. g5+ {[%clk 0:00:17]}  Ke6 {[%clk 0:00:11]} 51. Qxe3 {[%clk 0:00:17]}  a2 {[%clk 0:00:10]} 52. Qb3+ {[%clk 0:00:17]}  Qd5 {[%clk 0:00:10]} 53. Qb6+ {[%clk 0:00:17]}  Ke7 {[%clk 0:00:10]} 54. Qa7+ {[%clk 0:00:17]}  Kd6 {[%clk 0:00:10]} 55. Qa6+ {[%clk 0:00:17]}  Kc7 {[%clk 0:00:10]} 56. Qa7+ {[%clk 0:00:17]}  Kc6 {[%clk 0:00:10]} 57. Qa8+ {[%clk 0:00:17]}  Kc5 {[%clk 0:00:10]} 58. Qa5+ {[%clk 0:00:18]}  Kd4 {[%clk 0:00:10]} 59. Qd2+ {[%clk 0:00:18]}  Kc5 {[%clk 0:00:11]} 60. Qa5+ {[%clk 0:00:19]}  Kc6 {[%clk 0:00:11]} 61. Qa8+ {[%clk 0:00:19]}  Kd6 {[%clk 0:00:11]} 62. Qd8+ {[%clk 0:00:19]}  Ke6 {[%clk 0:00:12]} 63. Qg8+ {[%clk 0:00:18]}  Kd6 {[%clk 0:00:12]} 64. Qd8+ {[%clk 0:00:19]}  Kc5 {[%clk 0:00:11]} 65. Qa5+ {[%clk 0:00:19]} 1/2-1/2


[Site "https://www.chess.com"]

[Event "Titled Tuesday Blitz July 11 Early 2023"]
[White "ATM622"]
[Black "arenal72"]
[WhiteElo "2583"]
[BlackElo "2438"]
[Result "0-1"]
[Round "8"]
[TimeControl "180+2"]
[Date "2023.07.11"]
[WhiteClock "0:00:01"]
[BlackClock "0:00:51"]
[Board "80"]

1. d4 {[%clk 0:02:36]}  Nf6 {[%clk 0:02:58]} 2. c4 {[%clk 0:02:36]}  c5 {[%clk 0:02:57]} 3. d5 {[%clk 0:02:36]}  g6 {[%clk 0:02:55]} 4. g3 {[%clk 0:02:36]}  Bg7 {[%clk 0:02:55]} 5. Bg2 {[%clk 0:02:36]}  O-O {[%clk 0:02:55]} 6. Nf3 {[%clk 0:02:37]}  d6 {[%clk 0:02:55]} 7. O-O {[%clk 0:02:37]}  e6 {[%clk 0:02:56]} 8. Nc3 {[%clk 0:02:37]}  exd5 {[%clk 0:02:56]} 9. cxd5 {[%clk 0:02:38]}  Nbd7 {[%clk 0:02:55]} 10. Nd2 {[%clk 0:02:38]}  a6 {[%clk 0:02:52]} 11. a4 {[%clk 0:02:38]}  Qc7 {[%clk 0:02:49]} 12. Nc4 {[%clk 0:02:38]}  Nb6 {[%clk 0:02:36]} 13. Nxb6 {[%clk 0:02:36]}  Qxb6 {[%clk 0:02:37]} 14. a5 {[%clk 0:02:36]}  Qc7 {[%clk 0:02:36]} 15. Re1 {[%clk 0:02:30]}  Re8 {[%clk 0:02:35]} 16. e4 {[%clk 0:02:30]}  Bd7 {[%clk 0:02:32]} 17. h3 {[%clk 0:02:16]}  b5 {[%clk 0:02:28]} 18. axb6 {[%clk 0:02:14]}  Qxb6 {[%clk 0:02:27]} 19. Qc2 {[%clk 0:02:06]}  Rab8 {[%clk 0:02:25]} 20. Bf1 {[%clk 0:02:01]}  a5 {[%clk 0:02:25]} 21. f4 {[%clk 0:01:38]}  a4 {[%clk 0:02:13]} 22. Nxa4 {[%clk 0:01:23]}  Bxa4 {[%clk 0:02:07]} 23. Rxa4 {[%clk 0:01:20]}  Nxd5 {[%clk 0:02:06]} 24. Ra6 {[%clk 0:01:07]}  Nb4 {[%clk 0:01:52]} 25. Rxb6 {[%clk 0:01:05]}  Nxc2 {[%clk 0:01:52]} 26. Rxb8 {[%clk 0:01:05]}  Rxb8 {[%clk 0:01:53]} 27. Rd1 {[%clk 0:01:03]}  Bxb2 {[%clk 0:01:40]} 28. Bxb2 {[%clk 0:01:00]}  Rxb2 {[%clk 0:01:40]} 29. Rxd6 {[%clk 0:01:00]}  Nd4 {[%clk 0:01:40]} 30. Bd3 {[%clk 0:00:43]}  Nf3+ {[%clk 0:01:36]} 31. Kf1 {[%clk 0:00:43]}  c4 {[%clk 0:01:36]} 32. Be2 {[%clk 0:00:29]}  Nd2+ {[%clk 0:01:35]} 33. Ke1 {[%clk 0:00:30]}  Nxe4 {[%clk 0:01:34]} 34. Rd8+ {[%clk 0:00:29]}  Kg7 {[%clk 0:01:34]} 35. Bxc4 {[%clk 0:00:30]}  Rb1+ {[%clk 0:01:26]} 36. Ke2 {[%clk 0:00:29]}  Nxg3+ {[%clk 0:01:27]} 37. Kf3 {[%clk 0:00:25]}  Nf5 {[%clk 0:01:21]} 38. Bd3 {[%clk 0:00:25]}  Rb3 {[%clk 0:01:19]} 39. Kf2 {[%clk 0:00:25]}  Ne7 {[%clk 0:01:17]} 40. Rd7 {[%clk 0:00:25]}  Kf6 {[%clk 0:01:12]} 41. Rd6+ {[%clk 0:00:25]}  Kg7 {[%clk 0:01:13]} 42. Rd7 {[%clk 0:00:25]}  Rc3 {[%clk 0:01:04]} 43. Kg2 {[%clk 0:00:07]}  Ng8 {[%clk 0:01:02]} 44. Rd8 {[%clk 0:00:04]}  Nf6 {[%clk 0:01:01]} 45. h4 {[%clk 0:00:03]}  Nh5 {[%clk 0:01:01]} 46. Kf3 {[%clk 0:00:03]}  f5 {[%clk 0:00:59]} 47. Ke3 {[%clk 0:00:03]}  Ra3 {[%clk 0:00:58]} 48. Rd7+ {[%clk 0:00:03]}  Kh6 {[%clk 0:00:58]} 49. Rd8 {[%clk 0:00:01]}  Ra4 {[%clk 0:00:56]} 50. Rd7 {[%clk 0:00:01]}  Rxf4 {[%clk 0:00:54]} 51. Bc2 {[%clk 0:00:01]}  Rxh4 {[%clk 0:00:53]} 52. Bb3 {[%clk 0:00:02]}  Rh3+ {[%clk 0:00:51]} 53. Kd4 {[%clk 0:00:02]}  Rxb3 {[%clk 0:00:52]} 54. Ke5 {[%clk 0:00:03]}  Re3+ {[%clk 0:00:51]} 55. Kd4 {[%clk 0:00:02]}  Re1 {[%clk 0:00:51]} 56. Kd3 {[%clk 0:00:01]}  Rd1+ {[%clk 0:00:51]} 0-1


[Site "https://www.chess.com"]

[Event "Titled Tuesday Blitz July 11 Early 2023"]
[White "Romero Ruscalleda, Josep"]
[Black "ArtemDyachuk"]
[WhiteFideId "2231859"]
[WhiteElo "2420"]
[BlackElo "2578"]
[Result "0-1"]
[Round "8"]
[TimeControl "180+2"]
[Date "2023.07.11"]
[WhiteClock "0:00:09"]
[BlackClock "0:00:05"]
[Board "83"]

1. e4 {[%clk 0:03:00]}  c5 {[%clk 0:02:59]} 2. c3 {[%clk 0:03:00]}  d6 {[%clk 0:02:53]} 3. d4 {[%clk 0:03:00]}  cxd4 {[%clk 0:02:53]} 4. cxd4 {[%clk 0:03:00]}  g6 {[%clk 0:02:53]} 5. Nc3 {[%clk 0:02:59]}  Bg7 {[%clk 0:02:53]} 6. h3 {[%clk 0:02:59]}  Nf6 {[%clk 0:02:53]} 7. Nf3 {[%clk 0:02:59]}  O-O {[%clk 0:02:52]} 8. Bg5 {[%clk 0:02:58]}  Nc6 {[%clk 0:02:51]} 9. Qd2 {[%clk 0:02:58]}  d5 {[%clk 0:02:43]} 10. exd5 {[%clk 0:02:48]}  Nxd5 {[%clk 0:02:42]} 11. Bc4 {[%clk 0:02:45]}  Nb6 {[%clk 0:02:41]} 12. Bd3 {[%clk 0:02:39]}  Nxd4 {[%clk 0:02:37]} 13. Nxd4 {[%clk 0:02:39]}  Qxd4 {[%clk 0:02:34]} 14. O-O {[%clk 0:02:38]}  Bf5 {[%clk 0:02:31]} 15. Bxf5 {[%clk 0:02:28]}  Qxd2 {[%clk 0:02:30]} 16. Bxd2 {[%clk 0:02:28]}  gxf5 {[%clk 0:02:31]} 17. Rfe1 {[%clk 0:02:21]}  e6 {[%clk 0:02:31]} 18. Bf4 {[%clk 0:02:12]}  Nc4 {[%clk 0:02:28]} 19. Na4 {[%clk 0:02:04]}  b5 {[%clk 0:02:17]} 20. Rac1 {[%clk 0:02:04]}  Rac8 {[%clk 0:02:15]} 21. b3 {[%clk 0:01:57]}  Na3 {[%clk 0:02:05]} 22. Bd6 {[%clk 0:01:42]}  bxa4 {[%clk 0:01:35]} 23. Bxa3 {[%clk 0:01:39]}  Rfd8 {[%clk 0:01:18]} 24. bxa4 {[%clk 0:01:34]}  Bh6 {[%clk 0:01:17]} 25. Rxc8 {[%clk 0:01:22]}  Rxc8 {[%clk 0:01:18]} 26. Rd1 {[%clk 0:01:21]}  Rc4 {[%clk 0:00:58]} 27. Rd8+ {[%clk 0:01:12]}  Kg7 {[%clk 0:00:58]} 28. Bb2+ {[%clk 0:01:11]}  f6 {[%clk 0:00:36]} 29. Rd7+ {[%clk 0:01:08]}  Kg6 {[%clk 0:00:36]} 30. Rxa7 {[%clk 0:01:05]}  Rc2 {[%clk 0:00:34]} 31. Bd4 {[%clk 0:01:03]}  e5 {[%clk 0:00:34]} 32. Bb6 {[%clk 0:01:00]}  Rxa2 {[%clk 0:00:32]} 33. a5 {[%clk 0:01:00]}  f4 {[%clk 0:00:26]} 34. a6 {[%clk 0:00:45]}  Rb2 {[%clk 0:00:26]} 35. Bd8 {[%clk 0:00:42]}  Bf8 {[%clk 0:00:19]} 36. Rb7 {[%clk 0:00:35]}  Ra2 {[%clk 0:00:17]} 37. Rb6 {[%clk 0:00:30]}  Bc5 {[%clk 0:00:16]} 38. Rxf6+ {[%clk 0:00:30]}  Kg7 {[%clk 0:00:15]} 39. Rc6 {[%clk 0:00:28]}  Bxf2+ {[%clk 0:00:14]} 40. Kf1 {[%clk 0:00:27]}  Bd4 {[%clk 0:00:14]} 41. Bf6+ {[%clk 0:00:25]}  Kf7 {[%clk 0:00:13]} 42. Bh8 {[%clk 0:00:21]}  Rf2+ {[%clk 0:00:11]} 43. Ke1 {[%clk 0:00:20]}  Rxg2 {[%clk 0:00:11]} 44. Rc7+ {[%clk 0:00:20]}  Kg6 {[%clk 0:00:10]} 45. a7 {[%clk 0:00:18]}  Ra2 {[%clk 0:00:10]} 46. Rg7+ {[%clk 0:00:17]}  Kf5 {[%clk 0:00:09]} 47. Rxh7 {[%clk 0:00:17]}  f3 {[%clk 0:00:07]} 48. Bxe5 {[%clk 0:00:09]}  f2+ {[%clk 0:00:05]} 49. Kf1 {[%clk 0:00:09]}  Ra1+ {[%clk 0:00:05]} 50. Ke2 {[%clk 0:00:09]}  f1=Q+ {[%clk 0:00:05]} 51. Kd2 {[%clk 0:00:09]}  Qd1# {[%clk 0:00:05]} 0-1


[Site "https://www.chess.com"]

[Event "Titled Tuesday Blitz July 11 Early 2023"]
[White "Streltsov, Alexey"]
[Black "Goswami, Vedant"]
[WhiteFideId "24104434"]
[BlackFideId "5003725"]
[WhiteElo "2576"]
[BlackElo "2401"]
[Result "0-1"]
[Round "8"]
[TimeControl "180+2"]
[Date "2023.07.11"]
[WhiteClock "0:00:25"]
[BlackClock "0:00:18"]
[Board "84"]

1. d4 {[%clk 0:03:00]}  Nf6 {[%clk 0:02:58]} 2. Bf4 {[%clk 0:03:01]}  Nh5 {[%clk 0:02:57]} 3. Bd2 {[%clk 0:02:52]}  g6 {[%clk 0:02:57]} 4. e4 {[%clk 0:02:52]}  Bg7 {[%clk 0:02:54]} 5. g4 {[%clk 0:02:51]}  Nf6 {[%clk 0:02:51]} 6. f3 {[%clk 0:02:49]}  c5 {[%clk 0:02:44]} 7. dxc5 {[%clk 0:02:44]}  O-O {[%clk 0:02:33]} 8. Bc3 {[%clk 0:02:43]}  b6 {[%clk 0:02:28]} 9. cxb6 {[%clk 0:02:42]}  Qxb6 {[%clk 0:02:27]} 10. Qd4 {[%clk 0:02:34]}  Nc6 {[%clk 0:02:19]} 11. Qxb6 {[%clk 0:02:33]}  axb6 {[%clk 0:02:20]} 12. Bc4 {[%clk 0:02:22]}  Ba6 {[%clk 0:02:12]} 13. Nd2 {[%clk 0:02:19]}  b5 {[%clk 0:02:12]} 14. Bd5 {[%clk 0:02:12]}  b4 {[%clk 0:02:08]} 15. Bxf6 {[%clk 0:02:08]}  Bxf6 {[%clk 0:02:07]} 16. O-O-O {[%clk 0:01:58]}  Rfc8 {[%clk 0:02:04]} 17. f4 {[%clk 0:01:49]}  e6 {[%clk 0:02:02]} 18. Bxc6 {[%clk 0:01:46]}  Rxc6 {[%clk 0:02:02]} 19. e5 {[%clk 0:01:47]}  Be7 {[%clk 0:02:02]} 20. Ngf3 {[%clk 0:01:44]}  Be2 {[%clk 0:01:51]} 21. Nd4 {[%clk 0:01:43]}  Bxd1 {[%clk 0:01:45]} 22. Nxc6 {[%clk 0:01:43]}  dxc6 {[%clk 0:01:44]} 23. Rxd1 {[%clk 0:01:38]}  Rxa2 {[%clk 0:01:44]} 24. Nb3 {[%clk 0:01:39]}  c5 {[%clk 0:01:35]} 25. Rd7 {[%clk 0:01:36]}  c4 {[%clk 0:01:23]} 26. Rxe7 {[%clk 0:01:30]}  cxb3 {[%clk 0:01:23]} 27. cxb3 {[%clk 0:01:31]}  Ra1+ {[%clk 0:01:23]} 28. Kd2 {[%clk 0:01:27]}  Rh1 {[%clk 0:01:22]} 29. Rb7 {[%clk 0:01:20]}  Rxh2+ {[%clk 0:01:22]} 30. Ke3 {[%clk 0:01:21]}  Rh3+ {[%clk 0:01:20]} 31. Ke4 {[%clk 0:01:19]}  Rxb3 {[%clk 0:01:21]} 32. f5 {[%clk 0:01:20]}  gxf5+ {[%clk 0:01:20]} 33. gxf5 {[%clk 0:01:21]}  exf5+ {[%clk 0:01:15]} 34. Kxf5 {[%clk 0:01:22]}  Rxb2 {[%clk 0:01:14]} 35. Kf6 {[%clk 0:01:22]}  Rf2+ {[%clk 0:01:14]} 36. Ke7 {[%clk 0:01:23]}  Rf4 {[%clk 0:01:11]} 37. Rb8+ {[%clk 0:01:14]}  Kg7 {[%clk 0:01:10]} 38. Rf8 {[%clk 0:01:15]}  Rf5 {[%clk 0:01:06]} 39. e6 {[%clk 0:01:14]}  fxe6 {[%clk 0:00:57]} 40. Rb8 {[%clk 0:01:14]}  Rf4 {[%clk 0:00:52]} 41. Kxe6 {[%clk 0:01:14]}  Rc4 {[%clk 0:00:49]} 42. Kd5 {[%clk 0:01:13]}  Rg4 {[%clk 0:00:47]} 43. Ke5 {[%clk 0:01:11]}  h5 {[%clk 0:00:47]} 44. Kf5 {[%clk 0:01:10]}  Rc4 {[%clk 0:00:47]} 45. Rb7+ {[%clk 0:01:08]}  Kf8 {[%clk 0:00:42]} 46. Kf6 {[%clk 0:00:59]}  Ke8 {[%clk 0:00:40]} 47. Ke6 {[%clk 0:00:59]}  Kd8 {[%clk 0:00:40]} 48. Kd5 {[%clk 0:01:00]}  Rg4 {[%clk 0:00:39]} 49. Kd6 {[%clk 0:00:53]}  Kc8 {[%clk 0:00:38]} 50. Rc7+ {[%clk 0:00:51]}  Kb8 {[%clk 0:00:38]} 51. Rh7 {[%clk 0:00:52]}  b3 {[%clk 0:00:36]} 52. Kc6 {[%clk 0:00:53]}  Rb4 {[%clk 0:00:32]} 53. Rh8+ {[%clk 0:00:47]}  Ka7 {[%clk 0:00:32]} 54. Rxh5 {[%clk 0:00:35]}  b2 {[%clk 0:00:23]} 55. Rh7+ {[%clk 0:00:30]}  Ka6 {[%clk 0:00:22]} 56. Rh8 {[%clk 0:00:25]}  Rb6+ {[%clk 0:00:22]} 57. Kc5 {[%clk 0:00:25]}  b1=Q {[%clk 0:00:19]} 58. Ra8+ {[%clk 0:00:26]}  Kb7 {[%clk 0:00:19]} 59. Ra4 {[%clk 0:00:25]}  Qb5+ {[%clk 0:00:18]} 0-1


[Site "https://www.chess.com"]

[Event "Titled Tuesday Blitz July 11 Early 2023"]
[White "Dinosaurio_1975"]
[Black "Rodriguez Santiago, Jaime"]
[BlackFideId "3100898"]
[WhiteElo "2565"]
[BlackElo "2378"]
[Result "1-0"]
[Round "8"]
[TimeControl "180+2"]
[Date "2023.07.11"]
[WhiteClock "0:01:32"]
[BlackClock "0:00:47"]
[Board "88"]

1. e4 {[%clk 0:03:00]}  c6 {[%clk 0:03:00]} 2. d4 {[%clk 0:02:59]}  d5 {[%clk 0:02:59]} 3. e5 {[%clk 0:03:00]}  Bf5 {[%clk 0:02:57]} 4. Bd3 {[%clk 0:02:59]}  Bxd3 {[%clk 0:02:55]} 5. Qxd3 {[%clk 0:03:00]}  e6 {[%clk 0:02:53]} 6. c3 {[%clk 0:03:00]}  c5 {[%clk 0:02:52]} 7. Ne2 {[%clk 0:03:00]}  Nc6 {[%clk 0:02:52]} 8. O-O {[%clk 0:03:00]}  Qb6 {[%clk 0:02:40]} 9. a3 {[%clk 0:02:56]}  cxd4 {[%clk 0:02:31]} 10. cxd4 {[%clk 0:02:55]}  Nge7 {[%clk 0:02:30]} 11. Nd2 {[%clk 0:02:55]}  Nf5 {[%clk 0:02:29]} 12. Nf3 {[%clk 0:02:56]}  Be7 {[%clk 0:02:26]} 13. g4 {[%clk 0:02:51]}  Nh4 {[%clk 0:02:13]} 14. Nxh4 {[%clk 0:02:51]}  Bxh4 {[%clk 0:02:14]} 15. f4 {[%clk 0:02:52]}  Be7 {[%clk 0:02:06]} 16. b4 {[%clk 0:02:45]}  a6 {[%clk 0:01:51]} 17. Be3 {[%clk 0:02:44]}  g6 {[%clk 0:01:40]} 18. f5 {[%clk 0:02:42]}  gxf5 {[%clk 0:01:40]} 19. gxf5 {[%clk 0:02:41]}  Rg8+ {[%clk 0:01:40]} 20. Kh1 {[%clk 0:02:42]}  O-O-O {[%clk 0:01:32]} 21. f6 {[%clk 0:02:41]}  Bf8 {[%clk 0:01:30]} 22. Qxh7 {[%clk 0:02:40]}  Rg4 {[%clk 0:01:17]} 23. Qxf7 {[%clk 0:02:29]}  Re4 {[%clk 0:01:14]} 24. Qxe6+ {[%clk 0:02:25]}  Kb8 {[%clk 0:01:15]} 25. Rf3 {[%clk 0:02:04]}  Qb5 {[%clk 0:01:14]} 26. Nc3 {[%clk 0:02:01]}  Qd3 {[%clk 0:01:02]} 27. Nxe4 {[%clk 0:01:57]}  Qxe4 {[%clk 0:01:02]} 28. Qf5 {[%clk 0:01:56]}  Nxd4 {[%clk 0:01:01]} 29. Qxe4 {[%clk 0:01:53]}  dxe4 {[%clk 0:01:01]} 30. Rh3 {[%clk 0:01:44]}  Nf3 {[%clk 0:00:55]} 31. e6 {[%clk 0:01:37]}  Bd6 {[%clk 0:00:53]} 32. e7 {[%clk 0:01:35]}  Rg8 {[%clk 0:00:47]} 33. f7 {[%clk 0:01:32]} 1-0


[Site "https://www.chess.com"]

[Event "Titled Tuesday Blitz July 11 Early 2023"]
[White "SicilianPanzer"]
[Black "Leon Oquendo, Jorge"]
[BlackFideId "3514803"]
[WhiteElo "2252"]
[BlackElo "2564"]
[Result "0-1"]
[Round "8"]
[TimeControl "180+2"]
[Date "2023.07.11"]
[WhiteClock "0:00:00"]
[BlackClock "0:00:43"]
[Board "90"]

1. e4 {[%clk 0:02:59]}  c5 {[%clk 0:02:11]} 2. Nf3 {[%clk 0:02:58]}  Nc6 {[%clk 0:02:09]} 3. Bb5 {[%clk 0:02:57]}  e6 {[%clk 0:02:09]} 4. O-O {[%clk 0:02:56]}  Nge7 {[%clk 0:02:09]} 5. Re1 {[%clk 0:02:56]}  a6 {[%clk 0:02:09]} 6. Bf1 {[%clk 0:02:56]}  Ng6 {[%clk 0:02:09]} 7. c3 {[%clk 0:02:54]}  Be7 {[%clk 0:02:08]} 8. d4 {[%clk 0:02:52]}  d5 {[%clk 0:02:04]} 9. exd5 {[%clk 0:02:39]}  Qxd5 {[%clk 0:01:58]} 10. c4 {[%clk 0:02:30]}  Qd6 {[%clk 0:01:58]} 11. d5 {[%clk 0:01:57]}  Nd4 {[%clk 0:01:56]} 12. Nxd4 {[%clk 0:01:55]}  cxd4 {[%clk 0:01:56]} 13. Qxd4 {[%clk 0:01:49]}  O-O {[%clk 0:01:50]} 14. Be3 {[%clk 0:01:27]}  Bf6 {[%clk 0:01:47]} 15. Qd2 {[%clk 0:01:27]}  exd5 {[%clk 0:01:40]} 16. cxd5 {[%clk 0:01:26]}  Bf5 {[%clk 0:01:37]} 17. Nc3 {[%clk 0:01:25]}  Rfd8 {[%clk 0:01:38]} 18. Rad1 {[%clk 0:01:20]}  Rac8 {[%clk 0:01:34]} 19. Bd4 {[%clk 0:01:17]}  Be7 {[%clk 0:01:22]} 20. h3 {[%clk 0:00:55]}  b5 {[%clk 0:01:21]} 21. a3 {[%clk 0:00:54]}  h5 {[%clk 0:01:13]} 22. g3 {[%clk 0:00:51]}  h4 {[%clk 0:01:12]} 23. g4 {[%clk 0:00:50]}  Bd7 {[%clk 0:01:12]} 24. Bg2 {[%clk 0:00:38]}  f5 {[%clk 0:01:10]} 25. gxf5 {[%clk 0:00:26]}  Bxf5 {[%clk 0:01:11]} 26. Ne4 {[%clk 0:00:24]}  Qf4 {[%clk 0:01:05]} 27. Qxf4 {[%clk 0:00:16]}  Nxf4 {[%clk 0:01:06]} 28. Kh2 {[%clk 0:00:09]}  Nxg2 {[%clk 0:01:00]} 29. Kxg2 {[%clk 0:00:10]}  Rxd5 {[%clk 0:01:00]} 30. Nc3 {[%clk 0:00:06]}  Rd7 {[%clk 0:00:59]} 31. Bb6 {[%clk 0:00:05]}  Rxd1 {[%clk 0:00:58]} 32. Rxd1 {[%clk 0:00:06]}  Bf6 {[%clk 0:00:57]} 33. Rd6 {[%clk 0:00:05]}  Be5 {[%clk 0:00:50]} 34. Rd5 {[%clk 0:00:03]}  Bxc3 {[%clk 0:00:50]} 35. Rxf5 {[%clk 0:00:03]}  Bxb2 {[%clk 0:00:50]} 36. Rf3 {[%clk 0:00:03]}  Rc3 {[%clk 0:00:46]} 37. Rxc3 {[%clk 0:00:01]}  Bxc3 {[%clk 0:00:47]} 38. Bc5 {[%clk 0:00:02]}  Kf7 {[%clk 0:00:46]} 39. Kf1 {[%clk 0:00:02]}  Ke6 {[%clk 0:00:46]} 40. Ke2 {[%clk 0:00:02]}  Kd5 {[%clk 0:00:46]} 41. Bf8 {[%clk 0:00:03]}  g5 {[%clk 0:00:46]} 42. Kd3 {[%clk 0:00:03]}  Bf6 {[%clk 0:00:46]} 43. f3 {[%clk 0:00:03]}  a5 {[%clk 0:00:44]} 44. Bh6 {[%clk 0:00:01]}  Be7 {[%clk 0:00:44]} 45. Bg7 {[%clk 0:00:00]}  Bxa3 {[%clk 0:00:43]} 0-1


[Site "https://www.chess.com"]

[Event "Titled Tuesday Blitz July 11 Early 2023"]
[White "Ergazakis, Ioannis"]
[Black "Dau Khuong Duy"]
[WhiteFideId "4290976"]
[BlackFideId "12424722"]
[WhiteElo "2499"]
[BlackElo "2874"]
[Result "0-1"]
[Round "8"]
[TimeControl "180+2"]
[Date "2023.07.11"]
[WhiteClock "0:00:25"]
[BlackClock "0:01:05"]
[Board "91"]

1. e4 {[%clk 0:03:00]}  c5 {[%clk 0:03:00]} 2. Nf3 {[%clk 0:03:01]}  d6 {[%clk 0:03:00]} 3. d4 {[%clk 0:03:02]}  cxd4 {[%clk 0:03:01]} 4. Nxd4 {[%clk 0:03:02]}  Nf6 {[%clk 0:03:01]} 5. Nc3 {[%clk 0:03:03]}  a6 {[%clk 0:03:01]} 6. Be2 {[%clk 0:03:04]}  e6 {[%clk 0:03:01]} 7. g4 {[%clk 0:03:03]}  Nc6 {[%clk 0:02:52]} 8. g5 {[%clk 0:02:59]}  Nd7 {[%clk 0:02:52]} 9. Be3 {[%clk 0:02:59]}  Qc7 {[%clk 0:02:51]} 10. Qd2 {[%clk 0:02:54]}  b5 {[%clk 0:02:52]} 11. Nxc6 {[%clk 0:02:48]}  Qxc6 {[%clk 0:02:51]} 12. a3 {[%clk 0:02:49]}  Bb7 {[%clk 0:02:52]} 13. h4 {[%clk 0:02:38]}  Be7 {[%clk 0:02:49]} 14. h5 {[%clk 0:02:38]}  Nc5 {[%clk 0:02:46]} 15. f3 {[%clk 0:02:35]}  O-O-O {[%clk 0:02:46]} 16. O-O-O {[%clk 0:02:33]}  Kb8 {[%clk 0:02:43]} 17. Kb1 {[%clk 0:02:28]}  Nd7 {[%clk 0:02:41]} 18. Bd4 {[%clk 0:02:19]}  Rhg8 {[%clk 0:02:39]} 19. f4 {[%clk 0:02:14]}  Nb6 {[%clk 0:02:38]} 20. f5 {[%clk 0:02:01]}  Nc4 {[%clk 0:02:30]} 21. Bxc4 {[%clk 0:01:59]}  Qxc4 {[%clk 0:02:31]} 22. Bxg7 {[%clk 0:01:37]}  Rxg7 {[%clk 0:02:22]} 23. f6 {[%clk 0:01:38]}  Bxf6 {[%clk 0:02:22]} 24. gxf6 {[%clk 0:01:39]}  Rg4 {[%clk 0:02:22]} 25. Qh2 {[%clk 0:00:59]}  e5 {[%clk 0:02:11]} 26. Qh3 {[%clk 0:00:54]}  Rf4 {[%clk 0:02:09]} 27. Rhg1 {[%clk 0:00:51]}  Bxe4 {[%clk 0:01:55]} 28. Rg7 {[%clk 0:00:50]}  Rf3 {[%clk 0:01:32]} 29. Qg4 {[%clk 0:00:42]}  Rxc3 {[%clk 0:01:12]} 30. bxc3 {[%clk 0:00:43]}  Qb3+ {[%clk 0:01:12]} 31. Ka1 {[%clk 0:00:43]}  Qxa3+ {[%clk 0:01:07]} 32. Kb1 {[%clk 0:00:43]}  Qb3+ {[%clk 0:01:07]} 33. Ka1 {[%clk 0:00:25]}  Bxc2 {[%clk 0:01:05]} 0-1


[Site "https://www.chess.com"]